bitfinex/quotes_SOLUSD_20250422
["timestamp","ask_amount","ask_price","bid_price","bid_amount"]
[1745291343275,21.15777585,139.01,138.98,0.03]
[1745291343482,21.15777585,139.02,138.98,0.03]
[1745291344769,7.19372706,139.01,138.98,21.18777585]
[1745291345458,7.19340471,139.02,138.99,21.15777585]
[1745291345657,7.19340471,139.02,138.98,21.18777585]
[1745291345977,28.35118056,139.02,138.98,21.18777585]
[1745291346674,46.33420458,139.02,138.98,0.03]
[1745291346982,21.15777585,139.0,138.98,0.03]
[1745291347365,21.15777585,138.99,138.98,0.03]
[1745291348772,28.35253806,138.99,138.98,0.03]
[1745291349376,21.15777585,138.96,138.95,0.03]
[1745291350868,28.35409133,138.96,138.95,0.03]
[1745291351574,7.19631548,138.96,138.95,0.03]
[1745291351983,7.19599482,138.97,138.95,0.03]
[1745291352972,28.35377067,138.97,138.95,0.03]
[1745291353787,7.19599482,138.97,138.95,0.03]
[1745291354381,21.15777585,139.0,138.95,21.18777585]
[1745291354587,7.19495297,138.99,138.96,21.15777585]
[1745291355269,17.98423789,139.02,138.95,0.03]
[1745291355270,28.35202045,139.0,138.95,21.18777585]
[1745291355779,7.1942446,139.0,138.96,21.15777585]
[1745291357994,21.15777585,139.0,138.95,21.18777585]
[1745291358496,21.15777585,139.0,138.95,0.03]
[1745291358698,21.15777585,138.97,138.95,0.03]
[1745291359371,21.15777585,138.98,138.95,0.03]
[1745291360395,7.19561277,138.98,138.95,0.03]
[1745291360601,83.0,139.06,138.98,26.0]
[1745291360809,89.2507,139.08,139.03,21.15777585]
[1745291361102,21.15777585,139.07,139.02,21.15777585]
[1745291361699,28.34839927,139.07,139.02,21.15777585]
[1745291361882,7.19062342,139.07,139.03,21.15777585]
[1745291362087,28.34839927,139.07,139.02,21.15777585]
[1745291363310,28.34805342,139.08,139.03,21.15777585]
[1745291363494,7.19027757,139.08,139.04,21.15777585]
[1745291364412,7.19027757,139.08,139.05,21.15777585]
[1745291364707,7.19027757,139.08,139.04,21.15777585]
[1745291366287,28.34805342,139.08,139.03,21.15777585]
[1745291368088,7.19165767,139.05,139.0,26.0]
[1745291368288,28.34943352,139.05,139.0,47.15777585]
[1745291368488,28.34943352,139.05,139.0,21.15777585]
[1745291368693,21.15777585,139.04,138.99,15.2]
[1745291369012,21.15777585,139.01,138.97,21.15777585]
[1745291369303,21.15777585,139.03,138.98,21.15777585]
[1745291370316,7.19320961,139.02,138.98,21.15777585]
[1745291370686,28.35098546,139.02,138.97,39.80742471]
[1745291371306,7.19320961,139.02,138.98,21.15777585]
[1745291371495,7.19320961,139.02,138.97,18.64964886]
[1745291371496,7.1928733,139.03,138.99,21.15777585]
[1745291371887,28.35015111,139.04,138.99,21.15777585]
[1745291373615,21.15777585,139.03,138.98,21.15777585]
[1745291374119,21.15777585,139.03,138.99,21.15777585]
[1745291374607,21.15777585,139.03,138.97,18.64964886]
[1745291374815,21.15777585,139.02,138.97,18.64964886]
[1745291375004,21.15777585,139.02,138.98,21.15777585]
[1745291375208,7.19372706,139.01,138.98,21.15777585]
[1745291375394,28.35150291,139.01,138.97,21.15777585]
[1745291376512,21.15777585,139.02,138.97,21.15777585]
[1745291377902,47.15777585,139.02,138.95,0.03]
[1745291378220,21.15777585,138.98,138.95,0.03]
[1745291378598,7.19572383,138.98,138.95,0.03]
[1745291379314,100.98496904,139.01,138.97,21.15777585]
[1745291379521,28.35202045,139.0,138.95,21.18777585]
[1745291379716,21.15777585,138.99,138.95,0.03]
[1745291380630,28.35305574,138.98,138.95,0.03]
[1745291380804,21.15777585,138.97,138.95,0.03]
[1745291381003,28.35305574,138.98,138.95,0.03]
[1745291381310,13.25083668,138.97,138.95,0.03]
[1745291381927,20.44611657,138.98,138.95,0.03]
[1745291382615,17.98817116,138.99,138.95,0.03]
[1745291382817,13.25083668,138.96,138.95,0.03]
[1745291384729,7.19579765,138.97,138.95,0.03]
[1745291385428,7.19537358,138.98,138.95,0.03]
[1745291386116,100.98409062,139.02,138.96,13.25083668]
[1745291386117,7.1942446,139.0,138.96,13.25083668]
[1745291386303,20.44508128,139.0,138.96,13.25083668]
[1745291386712,20.44508128,139.0,138.95,13.28083668]
[1745291387032,13.25083668,138.99,138.95,0.03]
[1745291387233,13.25083668,138.97,138.95,0.03]
[1745291387412,13.25083668,138.98,138.95,0.03]
[1745291387611,25.17985611,139.0,138.95,0.03]
[1745291387810,13.25083668,138.99,138.95,0.03]
[1745291388110,13.25083668,138.98,138.95,0.03]
[1745291388312,13.25083668,138.97,138.95,0.03]
[1745291388815,7.19631548,138.96,138.95,0.03]
[1745291389033,20.44715216,138.96,138.95,0.03]
[1745291389423,7.19631548,138.96,138.95,0.03]
[1745291389730,20.44715216,138.96,138.95,0.03]
[1745291390319,7.19631548,138.96,138.95,0.03]
[1745291391204,7.19631548,138.96,138.9,0.03]
[1745291391205,83.0,138.95,138.9,0.03]
[1745291391408,26.0,138.92,138.9,0.03]
[1745291391630,13.25083668,138.91,138.9,0.03]
[1745291392529,13.25083668,138.91,138.89,1e-08]
[1745291392731,13.25083668,138.9,138.89,1e-08]
[1745291392932,20.45026072,138.9,138.89,1e-08]
[1745291393432,28.42719331,138.9,138.89,1e-08]
[1745291394136,7.19942404,138.9,138.89,1e-08]
[1745291395044,7.1990275,138.91,138.89,1e-08]
[1745291395838,28.42679677,138.91,138.89,1e-08]
[1745291396031,7.1990275,138.91,138.89,1e-08]
[1745291397041,7.19838756,138.92,138.89,1e-08]
[1745291397221,28.42615683,138.92,138.89,1e-08]
[1745291397743,21.22776927,138.91,138.89,1e-08]
[1745291398343,21.22776927,138.9,138.89,1e-08]
[1745291399129,28.42719331,138.9,138.89,1e-08]
[1745291399329,7.19942404,138.9,138.89,1e-08]
[1745291399532,28.42719331,138.9,138.89,1e-08]
[1745291399732,7.19942404,138.9,138.89,1e-08]
[1745291400533,7.19735137,138.94,138.89,1e-08]
[1745291400721,118.97781888,138.98,138.89,1e-08]
[1745291400722,46.40948475,138.99,138.93,21.22776927]
[1745291400921,46.40948475,138.99,138.95,21.22776927]
[1745291401121,28.42356692,138.97,138.93,21.22776927]
[1745291401546,7.19579765,138.97,138.93,21.22776927]
[1745291402247,7.19579765,138.97,138.94,21.22776927]
[1745291402628,21.22776927,138.95,138.9,26.0]
[1745291403027,25.18529178,138.97,138.9,26.0]
[1745291403028,21.22776927,138.96,138.91,21.22776927]
[1745291403330,7.19683339,138.95,138.92,21.22776927]
[1745291404146,7.19683339,138.95,138.91,18.64964886]
[1745291404347,7.19683339,138.95,138.91,39.87741813]
[1745291404551,28.42460266,138.95,138.9,26.0]
[1745291404847,28.42460266,138.95,138.9,47.22776927]
[1745291405164,25.18891687,138.95,138.89,1e-08]
[1745291405321,7.19924702,138.91,138.89,1e-08]
[1745291406354,17.99208348,138.95,138.89,1e-08]
[1745291406649,39.21985275,138.95,138.91,21.22776927]
[1745291406855,7.19631548,138.96,138.91,21.22776927]
[1745291407148,28.42408475,138.96,138.91,21.22776927]
[1745291408053,21.22776927,138.95,138.89,1e-08]
[1745291408349,21.22776927,138.96,138.91,21.22776927]
[1745291409041,7.19579765,138.97,138.93,21.22776927]
[1745291409243,28.42356692,138.97,138.92,39.87741813]
[1745291409642,21.22776927,138.96,138.92,18.64964886]
[1745291409843,21.22776927,138.96,138.89,26.00000001]
[1745291410031,21.22776927,138.94,138.9,18.64964886]
[1745291410350,21.22776927,138.95,138.9,18.64964886]
[1745291410550,7.19735137,138.94,138.9,39.87741813]
[1745291412033,7.19735137,138.94,138.91,21.22776927]
[1745291412228,7.19735137,138.94,138.9,39.87741813]
[1745291412428,28.42512064,138.94,138.9,18.64964886]
[1745291412931,21.22776927,138.92,138.89,1e-08]
[1745291413459,25.1907298,138.94,138.89,1e-08]
[1745291413655,7.19735137,138.94,138.89,1e-08]
[1745291413833,7.19735137,138.94,138.91,13.26094346]
[1745291414652,20.45829483,138.94,138.9,13.26094346]
[1745291414855,7.19735137,138.94,138.9,13.26094346]
[1745291415032,7.19631548,138.96,138.91,13.26094346]
[1745291415231,7.19631548,138.96,138.92,13.26094346]
[1745291415430,20.45725894,138.96,138.89,18.64964887]
[1745291415659,20.45725894,138.96,138.91,13.26094346]
[1745291415957,7.19631548,138.96,138.92,13.26094346]
[1745291416638,20.45725894,138.96,138.92,18.64964886]
[1745291418457,13.26094346,138.95,138.89,6.35860001]
[1745291418660,13.26094346,138.92,138.89,1e-08]
[1745291419340,13.26094346,138.93,138.89,1e-08]
[1745291420441,13.26094346,138.93,138.89,13.26094347]
[1745291420655,7.19833668,138.93,138.89,13.26094347]
[1745291420858,20.45928014,138.93,138.89,1e-08]
[1745291421459,13.26094346,138.92,138.89,1e-08]
[1745291422255,13.26094346,138.91,138.89,1e-08]
[1745291422460,13.26094346,138.9,138.89,1e-08]
[1745291422664,20.4603675,138.9,138.89,1e-08]
[1745291426177,39.26094346,138.88,138.87,0.03]
[1745291426335,46.46140428,138.88,138.87,0.03]
[1745291426664,46.46140428,138.88,138.87,1e-08]
[1745291427671,59.72234774,138.88,138.87,1e-08]
[1745291431366,13.26094346,138.85,138.84,0.03]
[1745291432455,51.20161289,138.88,138.84,0.03]
[1745291432659,13.26094346,138.86,138.84,0.03]
[1745291432972,13.26094346,138.85,138.84,0.03]
[1745291433160,51.20161289,138.88,138.84,0.03]
[1745291433361,13.26094346,138.85,138.84,0.03]
[1745291434446,46.46296002,138.85,138.83,0.03]
[1745291434642,13.26094346,138.84,138.83,0.03]
[1745291435149,7.20201656,138.85,138.83,0.03]
[1745291435350,20.46296002,138.85,138.83,0.03]
[1745291436271,7.20201656,138.85,138.83,0.03]
[1745291436571,20.46296002,138.85,138.83,0.03]
[1745291436766,13.26094346,138.84,138.83,0.03]
[1745291438064,13.26094346,138.84,138.83,1e-08]
[1745291439561,39.26094346,138.84,138.83,1e-08]
[1745291440265,26.0,138.84,138.83,1e-08]
[1745291440472,39.26094346,138.84,138.83,1e-08]
[1745291441277,39.26094346,138.84,138.82,1e-08]
[1745291441579,20.46399755,138.83,138.82,1e-08]
[1745291442083,20.46399755,138.83,138.81,1e-08]
[1745291442262,13.26094346,138.82,138.81,1e-08]
[1745291443372,39.26094346,138.82,138.81,1e-08]
[1745291443579,46.46451643,138.82,138.81,1e-08]
[1745291450671,20.46451643,138.82,138.81,1e-08]
[1745291451579,39.11416529,138.82,138.81,1e-08]
[1745291451964,26.0,138.79,138.77,1e-08]
[1745291452169,39.26094346,138.78,138.77,1e-08]
[1745291453764,46.46659268,138.78,138.77,1e-08]
[1745291456409,26.0,138.76,138.75,1e-08]
[1745291456585,39.26094346,138.76,138.73,1e-08]
[1745291456892,13.26094346,138.74,138.73,1e-08]
[1745291457184,20.46867014,138.74,138.73,1e-08]
[1745291458164,39.118319,138.74,138.73,1e-08]
[1745291458569,20.46867014,138.74,138.73,1e-08]
[1745291459071,7.20772668,138.74,138.73,1e-08]
[1745291459285,20.46867014,138.74,138.73,1e-08]
[1745291460504,7.20772668,138.74,138.73,1e-08]
[1745291460675,38.4800988,138.79,138.73,14.81604347]
[1745291460877,25.21915534,138.79,138.75,13.26094346]
[1745291461086,7.20513005,138.79,138.77,13.26094346]
[1745291462495,13.26094346,138.83,138.78,13.26094346]
[1745291462800,18.00323266,138.87,138.82,13.26094346]
[1745291463014,7.20149791,138.86,138.84,13.26094346]
[1745291463182,15.82,138.92,138.8,14.81604346]
[1745291463183,13.26094346,138.88,138.8,1.5551]
[1745291463513,13.26094346,138.83,138.78,18.64964886]
[1745291463807,13.26094346,138.83,138.78,31.91059232]
[1745291464013,13.26094346,138.84,138.79,13.26094346]
[1745291464496,7.20305409,138.83,138.79,13.26094346]
[1745291464702,38.47163278,138.83,138.78,31.91059232]
[1745291464902,38.47163278,138.83,138.77,6.5373]
[1745291464903,13.26094346,138.81,138.77,19.79824346]
[1745291465201,13.26094346,138.82,138.77,19.79824346]
[1745291465899,13.26094346,138.78,138.73,6.53730001]
[1745291466088,13.26094346,138.77,138.73,6.53730001]
[1745291466273,26.0,138.82,138.73,19.79824347]
[1745291466480,13.26094346,138.79,138.74,13.26094346]
[1745291466697,13.26094346,138.8,138.75,13.26094346]
[1745291466998,13.26094346,138.79,138.74,13.26094346]
[1745291467388,25.21432173,138.81,138.74,21.25902256]
[1745291467702,21.25902256,138.79,138.74,21.25902256]
[1745291468705,7.20461095,138.8,138.78,21.25902256]
[1745291469012,7.20461095,138.8,138.77,21.25902256]
[1745291469301,7.20461095,138.8,138.78,21.25902256]
[1745291469501,44.00758809,138.84,138.78,21.25902256]
[1745291469703,25.20456059,138.87,138.81,21.25902256]
[1745291469878,47.25902256,138.86,138.81,21.25902256]
[1745291470073,47.25902256,138.86,138.77,16.02]
[1745291470074,21.25902256,138.85,138.8,21.25902256]
[1745291470279,47.25902256,138.86,138.81,21.25902256]
[1745291470477,26.0,138.86,138.81,21.25902256]
[1745291470706,7.20201656,138.85,138.81,21.25902256]
[1745291470913,7.20201656,138.85,138.77,16.02]
[1745291470914,46.46608053,138.85,138.8,21.25902256]
[1745291471207,21.25902256,138.84,138.79,21.25902256]
[1745291471581,21.25902256,138.83,138.79,21.25902256]
[1745291471885,21.25902256,138.8,138.74,18.64964886]
[1745291472209,21.25902256,138.79,138.75,21.25902256]
[1745291472380,21.25902256,138.8,138.75,21.25902256]
[1745291472577,26.0,138.83,138.76,21.25902256]
[1745291472793,28.46259553,138.82,138.77,21.25902256]
[1745291473009,21.25902256,138.81,138.77,21.25902256]
[1745291473982,21.25902256,138.81,138.74,18.64964886]
[1745291474184,21.25902256,138.8,138.75,21.25902256]
[1745291474379,21.25902256,138.79,138.75,21.25902256]
[1745291474833,7.20564922,138.78,138.75,21.25902256]
[1745291474995,25.21977229,138.78,138.74,21.25902256]
[1745291475195,46.47879485,138.78,138.74,21.25902256]
[1745291475401,25.21977229,138.78,138.74,21.25902256]
[1745291475600,25.21977229,138.78,138.73,18.64964887]
[1745291475811,25.21977229,138.78,138.74,21.25902256]
[1745291476016,7.20564922,138.78,138.76,21.25902256]
[1745291476399,7.20564922,138.78,138.75,21.25902256]
[1745291476814,7.20513005,138.79,138.76,21.25902256]
[1745291478098,7.20513005,138.79,138.77,21.25902256]
[1745291479025,46.47443438,138.81,138.76,21.25902256]
[1745291481501,21.25902256,138.79,138.73,1e-08]
[1745291481828,21.25902256,138.8,138.75,21.25902256]
[1745291482210,46.47443438,138.81,138.77,21.25902256]
[1745291482617,46.47443438,138.81,138.76,21.25902256]
[1745291483710,46.47443438,138.81,138.73,1e-08]
[1745291484028,46.47443438,138.81,138.74,21.25902256]
[1745291484029,21.25902256,138.79,138.74,21.25902256]
[1745291484326,21.25902256,138.79,138.75,21.25902256]
[1745291484630,21.25902256,138.8,138.76,21.25902256]
[1745291484814,21.25902256,138.8,138.73,18.64964887]
[1745291485016,21.25902256,138.8,138.76,21.25902256]
[1745291485210,46.47443438,138.81,138.76,21.25902256]
[1745291485413,46.47443438,138.81,138.79,21.25902256]
[1745291485414,7.20409192,138.81,138.79,21.25902256]
[1745291485731,28.46207665,138.83,138.78,21.25902256]
[1745291486104,21.25902256,138.81,138.77,21.25902256]
[1745291486417,21.25902256,138.79,138.75,21.25902256]
[1745291487324,39.28613505,138.8,138.75,13.28613505]
[1745291487625,7.20513005,138.79,138.75,13.28613505]
[1745291487827,7.20513005,138.79,138.73,1e-08]
[1745291487828,25.21795518,138.79,138.76,13.28613505]
[1745291489221,7.20513005,138.79,138.76,13.28613505]
[1745291489408,7.20461095,138.8,138.76,21.25365278]
[1745291489612,28.45826373,138.8,138.73,1e-08]
[1745291490145,46.4697911,138.8,138.75,21.25365278]
[1745291490723,25.21613832,138.8,138.77,21.25365278]
[1745291490924,7.20461095,138.8,138.78,21.25365278]
[1745291491741,7.20461095,138.8,138.77,21.25365278]
[1745291492236,7.20461095,138.8,138.76,21.25365278]
[1745291492860,7.20461095,138.8,138.78,21.25365278]
[1745291493458,7.20461095,138.8,138.74,16.02]
[1745291493820,21.25365278,138.79,138.75,21.25365278]
[1745291494120,46.4697911,138.8,138.75,21.25365278]
[1745291494337,25.21613832,138.8,138.76,21.25365278]
[1745291494645,7.20461095,138.8,138.76,21.25365278]
[1745291495026,7.20461095,138.8,138.79,21.25365278]
[1745291495542,7.20357297,138.82,138.78,21.25365278]
[1745291496234,21.25365278,138.81,138.77,21.25365278]
[1745291496423,7.20357297,138.82,138.73,34.64964887]
[1745291496424,25.2125054,138.82,138.73,34.64964887]
[1745291496625,21.25365278,138.8,138.76,21.25365278]
[1745291496933,108.2125054,138.82,138.76,21.25365278]
[1745291497121,90.20357297,138.82,138.78,21.25365278]
[1745291497328,111.45722575,138.82,138.73,34.64964887]
[1745291497528,28.45722575,138.82,138.77,21.25365278]
[1745291497818,46.46615818,138.82,138.73,34.64964887]
[1745291498133,46.46615818,138.82,138.77,21.25365278]
[1745291498336,21.25365278,138.79,138.73,34.64964887]
[1745291498529,21.25365278,138.79,138.74,21.25365278]
[1745291498833,21.25365278,138.79,138.73,34.64964887]
[1745291499127,21.25365278,138.79,138.74,21.25365278]
[1745291499329,21.25365278,138.8,138.75,21.25365278]
[1745291499644,25.2125054,138.82,138.77,21.25365278]
[1745291499849,7.20357297,138.82,138.79,21.25365278]
[1745291500858,7.20357297,138.82,138.78,21.25365278]
[1745291501658,7.20357297,138.82,138.79,21.25365278]
[1745291501817,7.20253529,138.84,138.81,21.25365278]
[1745291502017,83.0,138.87,138.83,21.25365278]
[1745291502227,7.20149791,138.86,138.85,21.25365278]
[1745291502640,0.063,138.88,138.85,21.25365278]
[1745291502951,7.26360565,138.88,138.87,21.25365278]
[1745291503142,7.26360565,138.88,138.86,21.25365278]
[1745291503943,0.063,138.88,138.86,21.25365278]
[1745291504258,0.063,138.88,138.85,21.25365278]
[1745291505633,0.063,138.88,138.87,21.25365278]
[1745291506027,21.31665278,138.88,138.81,18.64964886]
[1745291506253,21.31665278,138.88,138.83,21.25365278]
[1745291506432,21.31665278,138.88,138.84,21.25365278]
[1745291506433,0.063,138.88,138.84,21.25365278]
[1745291506949,0.063,138.88,138.81,18.64964886]
[1745291507154,7.26346082,138.88,138.84,21.25365278]
[1745291509248,25.26461289,138.88,138.81,18.64964886]
[1745291509443,21.25365278,138.86,138.8,18.64964886]
[1745291509621,47.25365278,138.87,138.82,21.25365278]
[1745291510057,26.0,138.87,138.83,21.25365278]
[1745291510239,21.25365278,138.86,138.81,21.25365278]
[1745291510551,21.25365278,138.86,138.82,21.25365278]
[1745291511443,7.20201656,138.85,138.82,21.25365278]
[1745291511749,7.20097933,138.87,138.83,21.25365278]
[1745291511956,7.20097933,138.87,138.85,21.25365278]
[1745291512157,7.20097933,138.87,138.84,21.25365278]
[1745291512355,7.20097933,138.87,138.85,21.25365278]
[1745291512539,7.26365639,138.88,138.85,21.25365278]
[1745291513359,7.26365639,138.88,138.8,65.90330164]
[1745291513360,7.26365639,138.88,138.86,21.25365278]
[1745291513538,0.063,138.88,138.85,21.25365278]
[1745291514461,0.063,138.88,138.86,21.25365278]
[1745291514629,0.063,138.88,138.87,21.25365278]
[1745291516561,0.063,138.88,138.87,39.90330164]
[1745291518241,0.063,138.88,138.87,21.25365278]
[1745291519856,0.063,138.88,138.87,39.90330164]
[1745291520261,0.063,138.88,138.85,6.4045]
[1745291520433,0.063,138.88,138.84,21.25365278]
[1745291520639,0.063,138.88,138.82,18.64964886]
[1745291520962,0.063,138.88,138.85,21.25365278]
[1745291521166,0.063,138.88,138.82,44.64964886]
[1745291521357,0.063,138.88,138.85,21.25365278]
[1745291523169,0.063,138.88,138.87,39.90330164]
[1745291523347,0.063,138.88,138.87,62.67655442]
[1745291524264,0.063,138.88,138.87,41.42290164]
[1745291524453,0.063,138.88,138.87,62.67655442]
[1745291525152,0.063,138.88,138.87,41.42290164]
[1745291525341,0.063,138.88,138.87,62.67655442]
[1745291525544,0.063,138.89,138.88,18.64964886]
[1745291525743,0.063,138.89,138.88,61.15695442]
[1745291526082,0.063,138.93,138.92,18.64964886]
[1745291526367,0.063,138.93,138.92,55.90330164]
[1745291529458,0.063,138.95,138.94,44.64964886]
[1745291529760,0.063,138.95,138.94,87.15695442]
[1745291529960,0.063,138.97,138.94,93.61795442]
[1745291530152,0.063,138.97,138.95,61.15695442]
[1745291530961,0.063,138.97,138.95,39.90330164]
[1745291531369,0.063,138.97,138.95,18.64964886]
[1745291531761,0.063,138.97,138.95,39.90330164]
[1745291534678,0.063,138.97,138.95,21.25365278]
[1745291534874,0.063,138.97,138.93,18.64964886]
[1745291535180,0.063,138.97,138.92,42.0]
[1745291535358,0.063,138.97,138.94,21.25365278]
[1745291535957,21.31665278,138.97,138.93,21.25365278]
[1745291536491,21.31665278,138.96,138.87,17.4841]
[1745291536657,21.25365278,138.93,138.88,21.25365278]
[1745291537674,7.19838756,138.92,138.9,21.25365278]
[1745291537878,7.19838756,138.92,138.91,21.25365278]
[1745291538397,0.063,138.96,138.91,21.25365278]
[1745291538555,0.063,138.96,138.93,21.25365278]
[1745291538877,0.063,138.96,138.89,34.54964886]
[1745291539173,21.31665278,138.96,138.92,21.25365278]
[1745291539381,7.19683339,138.95,138.92,21.25365278]
[1745291539582,7.19683339,138.95,138.89,34.54964886]
[1745291539583,7.19683339,138.95,138.91,21.25365278]
[1745291539880,21.25365278,138.93,138.88,21.25365278]
[1745291540070,21.25365278,138.93,138.89,21.25365278]
[1745291540889,39.24573626,138.95,138.9,21.25365278]
[1745291541060,28.51296826,138.96,138.91,21.25365278]
[1745291541376,28.51296826,138.96,138.92,21.25365278]
[1745291541984,28.51296826,138.96,138.91,21.25365278]
[1745291542184,25.25010419,138.96,138.92,21.25365278]
[1745291542367,46.50375697,138.96,138.91,21.25365278]
[1745291544790,7.25931548,138.96,138.92,21.25365278]
[1745291545375,7.25931548,138.96,138.93,21.25365278]
[1745291546091,0.063,138.96,138.89,18.64964886]
[1745291546263,0.063,138.96,138.92,21.25365278]
[1745291546862,21.31665278,138.96,138.89,18.64964886]
[1745291547069,21.31665278,138.96,138.91,21.25365278]
[1745291547282,21.31665278,138.96,138.92,21.25365278]
[1745291548394,7.19683339,138.95,138.92,21.25365278]
[1745291548567,7.19683339,138.95,138.93,21.25365278]
[1745291549396,7.19683339,138.95,138.92,21.25365278]
[1745291549773,7.19683339,138.95,138.85,98.53]
[1745291549774,48.78675278,138.93,138.87,21.25365278]
[1745291549969,1.5331,138.93,138.89,21.25365278]
[1745291550188,46.44256965,138.95,138.9,21.25365278]
[1745291552690,25.18891687,138.95,138.93,21.25365278]
[1745291552890,7.19683339,138.95,138.93,21.25365278]
[1745291553408,7.19683339,138.95,138.93,13.25099048]
[1745291553588,7.25931548,138.96,138.93,13.25099048]
[1745291553793,25.25010419,138.96,138.9,18.64964886]
[1745291554175,25.25010419,138.96,138.92,13.25099048]
[1745291554376,25.25010419,138.96,138.93,13.25099048]
[1745291557687,25.25010419,138.96,138.92,13.25099048]
[1745291557995,25.25010419,138.96,138.93,13.25099048]
[1745291559375,7.25931548,138.96,138.94,13.25099048]
[1745291559576,0.063,138.96,138.95,31.90063934]
[1745291560197,0.063,138.96,138.95,72.68582982]
[1745291561503,0.063,138.96,138.95,88.5409971]
[1745291562695,0.063,138.96,138.95,67.36242298]
[1745291566634,0.063,138.96,138.95,88.5409971]
[1745291566915,0.063,138.96,138.95,67.36242298]
[1745291568455,0.063,138.96,138.95,21.17857412]
[1745291568717,0.063,138.96,138.94,21.17857412]
[1745291569118,0.063,138.96,138.91,17.2742]
[1745291569418,0.063,138.96,138.94,21.17857412]
[1745291570319,0.063,138.96,138.91,34.38964886]
[1745291570506,0.063,138.96,138.93,21.17857412]
[1745291571095,0.063,138.96,138.92,21.17857412]
[1745291571633,21.24157412,138.96,138.91,41.74]
[1745291571795,21.17857412,138.95,138.91,15.74]
[1745291571995,21.17857412,138.94,138.9,21.17857412]
[1745291572228,21.17857412,138.95,138.9,21.17857412]
[1745291572434,7.19735137,138.94,138.88,44.64964886]
[1745291572609,7.19735137,138.94,138.9,21.17857412]
[1745291572816,28.37592549,138.94,138.89,21.17857412]
[1745291573025,7.19735137,138.94,138.9,21.17857412]
[1745291573228,7.19735137,138.94,138.91,21.17857412]
[1745291573440,7.19735137,138.94,138.92,21.17857412]
[1745291573734,7.19735137,138.94,138.91,21.17857412]
[1745291574412,21.24157412,138.96,138.91,21.17857412]
[1745291575234,21.17857412,138.95,138.9,21.17857412]
[1745291576436,0.063,138.96,138.92,21.17857412]
[1745291576646,7.1970585,138.95,138.92,21.17857412]
[1745291576946,0.063,138.96,138.93,21.17857412]
[1745291577344,0.063,138.96,138.89,18.64964886]
[1745291577524,0.063,138.96,138.92,21.17857412]
[1745291577725,7.25953885,138.96,138.92,21.17857412]
[1745291579232,7.25953885,138.96,138.93,21.17857412]
[1745291579434,0.063,138.96,138.95,21.17857412]
[1745291580448,0.063,138.96,138.95,39.82822298]
[1745291583536,0.063,138.96,138.95,31.89397233]
[1745291583843,0.063,138.96,138.95,13.24432347]
[1745291584516,0.063,138.96,138.93,13.24432347]
[1745291585143,0.063,138.96,138.94,13.24432347]
[1745291585520,0.063,138.96,138.95,13.24432347]
[1745291588028,0.063,138.96,138.95,31.89397233]
[1745291589434,0.063,138.96,138.95,39.83185755]
[1745291590049,0.063,138.96,138.95,87.01406624]
[1745291590643,0.063,138.97,138.96,18.64964886]
[1745291590845,0.063,138.97,138.96,61.01406624]
[1745291593847,0.063,139.01,139.0,18.64964886]
[1745291594049,0.063,139.01,139.0,39.83185755]
[1745291595034,0.063,139.02,139.0,39.83185755]
[1745291595243,0.063,139.02,139.01,39.83185755]
[1745291597155,0.063,139.02,139.0,82.6]
[1745291597156,0.063,139.02,138.99,26.0]
[1745291597360,21.18220869,139.01,138.94,21.6138]
[1745291597661,21.24520869,139.02,138.97,21.18220869]
[1745291598034,21.24520869,139.02,138.96,18.64964886]
[1745291598236,7.19372706,139.01,138.97,21.18220869]
[1745291599056,7.19372706,139.01,138.96,18.64964886]
[1745291599259,28.37593575,139.01,138.96,39.83185755]
[1745291599560,28.37593575,139.01,138.97,21.18220869]
[1745291600162,7.19372706,139.01,138.98,21.18220869]
[1745291600342,7.25620961,139.02,138.98,21.18220869]
[1745291601063,7.25620961,139.02,138.97,21.18220869]
[1745291601265,21.18220869,139.01,138.97,21.18220869]
[1745291601447,21.18220869,139.01,138.96,39.83185755]
[1745291601870,21.18220869,139.01,138.97,21.18220869]
[1745291602162,25.23923363,139.02,138.97,21.18220869]
[1745291602163,28.4384183,139.02,138.97,21.18220869]
[1745291602559,7.25620961,139.02,138.99,21.18220869]
[1745291602748,28.4384183,139.02,138.98,21.18220869]
[1745291603566,21.18220869,139.01,138.96,39.83185755]
[1745291604259,21.18220869,139.0,138.95,21.18220869]
[1745291604443,25.23923363,139.02,138.94,15.52]
[1745291604444,28.37748858,138.98,138.94,15.52]
[1745291604843,28.37748858,138.98,138.93,39.83185755]
[1745291605452,28.37748858,138.98,138.93,21.18220869]
[1745291606165,21.18220869,138.97,138.93,18.64964886]